bitfinex/quotes_SOLUSD_20240620
["timestamp","ask_amount","ask_price","bid_price","bid_amount"]
[1718890508781,25.99064246,135.5,135.37,18.4676]
[1718890508998,25.99064246,135.5,135.38,45.0]
[1718890508999,48.20064246,135.5,135.38,45.0]
[1718890509305,5.99064246,135.5,135.38,45.0]
[1718890509987,54.35,135.54,135.41,7.3847]
[1718890510186,54.35,135.54,135.38,45.0]
[1718890510187,54.35,135.54,135.4,7.3854]
[1718890510388,22.21,135.54,135.38,45.0]
[1718890510817,22.21,135.5,135.38,45.0]
[1718890511108,22.21,135.5,135.3,9.979991]
[1718890511298,22.21,135.5,135.36,7.3875]
[1718890511505,22.21,135.5,135.37,7.3869]
[1718890511699,22.21,135.5,135.31,20.0]
[1718890511700,32.14,135.48,135.31,20.0]
[1718890512006,42.89,135.47,135.3,20.0]
[1718890512186,20.68,135.47,135.35,18.4706]
[1718890512507,42.89,135.47,135.36,7.3874]
[1718890512807,20.68,135.47,135.33,40.682]
[1718890513013,0.68,135.47,135.33,40.682]
[1718890513180,0.68,135.47,135.34,45.0]
[1718890513384,0.68,135.47,135.3,18.4761]
[1718890513585,0.17,135.45,135.34,7.3886]
[1718890513806,0.51,135.45,135.34,7.3886]
[1718890514003,0.17,135.43,135.27,18.4812]
[1718890514210,42.72,135.43,135.29,18.4786]
[1718890514509,20.17,135.42,135.34,7.3883]
[1718890514693,20.0,135.45,135.31,22.21]
[1718890514904,20.0,135.45,135.35,18.4705]
[1718890515105,20.0,135.49,135.37,40.6775]
[1718890515293,38.12239494,135.52,135.4,7.3851]
[1718890515481,60.33239494,135.52,135.4,7.3851]
[1718890515684,38.12239494,135.52,135.41,7.3849]
[1718890515885,5.98239494,135.52,135.41,7.3849]
[1718890516114,32.14,135.59,135.38,41.0152]
[1718890516307,32.14,135.59,135.43,7.3838]
[1718890516494,22.21,135.54,135.39,0.17]
[1718890516699,22.21,135.54,135.4,7.3851]
[1718890516883,22.21,135.54,135.41,7.3849]
[1718890517211,22.21,135.54,135.39,7.3855]
[1718890517625,0.17,135.51,135.39,7.3855]
[1718890517791,20.68,135.51,135.39,7.3855]
[1718890517990,0.68,135.51,135.38,7.3864]
[1718890518207,42.89,135.51,135.39,7.386]
[1718890518391,42.89,135.51,135.37,7.3866]
[1718890518587,0.17,135.48,135.31,16.0854]
[1718890518797,0.17,135.48,135.35,18.47]
[1718890519194,0.17,135.48,135.39,7.3856]
[1718890519394,0.17,135.48,135.4,7.3854]
[1718890519596,0.17,135.48,135.38,7.3861]
[1718890519806,0.17,135.48,135.35,18.4705]
[1718890520310,0.17,135.48,135.37,7.3867]
[1718890520509,0.17,135.48,135.32,38.4734]
[1718890520691,0.17,135.48,135.36,7.3874]
[1718890520892,0.17,135.48,135.32,20.0]
[1718890521100,0.17,135.48,135.36,18.4689]
[1718890521307,0.17,135.48,135.37,7.3871]
[1718890521497,0.17,135.48,135.36,7.3876]
[1718890521698,0.17,135.48,135.37,7.3868]
[1718890522089,20.17,135.49,135.32,56.9478]
[1718890522296,20.0,135.49,135.4,7.3853]
[1718890522628,20.0,135.51,135.39,18.4648]
[1718890522792,20.0,135.51,135.43,7.3835]
[1718890522993,20.0,135.51,135.41,7.3846]
[1718890523418,20.0,135.51,135.4,7.3854]
[1718890523716,42.21,135.52,135.37,18.4677]
[1718890523892,20.0,135.52,135.38,38.6352]
[1718890524097,20.0,135.53,135.39,0.34]
[1718890524297,42.21,135.53,135.34,0.17]
[1718890524592,22.21,135.5,135.28,6.28]
[1718890524804,22.21,135.44,135.29,20.0]
[1718890524996,22.21,135.44,135.32,7.3893]
[1718890525204,32.13,135.45,135.26,18.4829]
[1718890525205,0.17,135.42,135.26,18.4829]
[1718890525386,0.17,135.42,135.24,6.3068]
[1718890525387,0.51,135.42,135.3,7.3907]
[1718890525587,0.17,135.41,135.29,7.3913]
[1718890525816,0.51,135.41,135.24,36.9692]
[1718890525987,0.51,135.41,135.33,7.3891]
[1718890526199,0.17,135.41,135.31,18.476]
[1718890526408,20.0,135.44,135.37,7.387]
[1718890526613,20.0,135.51,135.34,18.4706]
[1718890526814,22.21,135.5,135.36,7.3873]
[1718890527122,22.21,135.48,135.36,7.3875]
[1718890527320,22.21,135.48,135.34,18.4706]
[1718890527620,20.0,135.47,135.39,7.3856]
[1718890527826,20.0,135.47,135.36,0.17]
[1718890527827,20.0,135.47,135.42,7.3843]
[1718890528117,388.0,135.69,135.36,0.17]
[1718890528118,20.0,135.51,135.36,0.17]
[1718890528324,20.0,135.53,135.41,18.4615]
[1718890528495,13.3162019,135.62,135.44,7.3829]
[1718890528697,7.70801955,135.58,135.42,18.6298]
[1718890528892,22.21,135.57,135.42,18.6298]
[1718890529198,22.21,135.58,135.47,7.3816]
[1718890529535,39.81748701,135.59,135.45,0.17]
[1718890529700,36.2632524,135.71,135.45,0.17]
[1718890529701,5.90890662,135.63,135.51,7.3795]
[1718890530032,20.0,135.62,135.51,7.3795]
[1718890530326,20.0,135.62,135.5,7.3798]
[1718890530512,20.0,135.62,135.49,0.17]
[1718890530838,20.0,135.64,135.48,18.4526]
[1718890531131,22.21,135.64,135.53,7.3783]
[1718890531497,20.0,135.63,135.5,18.45]
[1718890531698,20.0,135.63,135.53,0.17]
[1718890531921,20.0,135.63,135.52,18.4468]
[1718890532121,22.21,135.67,135.54,7.3777]
[1718890532331,22.21,135.67,135.53,7.3779]
[1718890532501,22.21,135.64,135.49,18.4503]
[1718890532701,22.21,135.64,135.46,47.0941]
[1718890532921,22.21,135.64,135.51,7.3795]
[1718890533136,22.21,135.64,135.47,20.0]
[1718890533309,7.70189999,135.68,135.49,7.3804]
[1718890533310,54.34,135.61,135.49,7.3804]
[1718890533509,20.0,135.6,135.41,66.4949]
[1718890533706,0.34,135.59,135.5,7.3797]
[1718890533928,20.0,135.6,135.52,7.3785]
[1718890534132,32.13,135.58,135.42,7.3838]
[1718890534321,20.0,135.57,135.47,9.87974954]
[1718890534505,22.21,135.56,135.43,7.3838]
[1718890534824,22.21,135.56,135.36,6.0876]
[1718890534825,54.34,135.54,135.41,7.3848]
[1718890534998,54.34,135.54,135.38,29.592478]
[1718890534999,0.17,135.51,135.38,29.592478]
[1718890535199,0.68,135.51,135.38,29.592478]
[1718890535398,0.34,135.51,135.32,84.7638]
[1718890535704,0.17,135.49,135.38,7.3864]
[1718890535906,22.21,135.46,135.32,29.592478]
[1718890536105,20.51,135.45,135.35,7.3881]
[1718890536321,20.0,135.45,135.27,33.60512235]
[1718890536624,0.34,135.44,135.35,7.3881]
[1718890536831,0.17,135.43,135.31,18.4755]
[1718890537017,0.34,135.43,135.34,7.3887]
[1718890537217,0.34,135.43,135.29,29.606471]
[1718890537439,0.34,135.42,135.29,29.606471]
[1718890537624,0.34,135.41,135.29,29.606471]
[1718890537802,0.34,135.42,135.26,44.4047]
[1718890538008,0.34,135.42,135.33,7.3892]
[1718890538207,20.17,135.43,135.35,7.3878]
[1718890538444,20.17,135.43,135.32,7.3897]
[1718890538445,0.51,135.42,135.32,7.3897]
[1718890538813,0.51,135.42,135.33,7.3893]
[1718890539134,0.17,135.43,135.34,7.3887]
[1718890539707,0.17,135.43,135.34,7.3886]
[1718890539911,0.17,135.43,135.27,22.21]
[1718890540113,0.34,135.44,135.36,7.3875]
[1718890540414,20.0,135.46,135.31,22.21]
[1718890540732,20.0,135.51,135.36,18.469]
[1718890540912,42.21,135.51,135.36,18.469]
[1718890541117,42.21,135.51,135.39,7.386]
[1718890541414,39.525,135.59,135.39,7.386]
[1718890541415,32.13,135.59,135.42,7.3843]
[1718890541612,32.13,135.55,135.38,18.4654]
[1718890541825,32.13,135.55,135.43,7.3838]
[1718890542029,22.21,135.54,135.42,7.3842]
[1718890542210,22.21,135.54,135.39,0.51]
[1718890542211,22.21,135.54,135.38,0.17]
[1718890542416,22.21,135.54,135.4,7.3854]
[1718890542635,0.68,135.53,135.43,7.3836]
[1718890542841,32.13,135.55,135.41,40.6722]
[1718890543008,22.21,135.63,135.42,20.68]
[1718890543212,32.13,135.6,135.43,40.6696]
[1718890543413,32.13,135.6,135.44,20.68]
[1718890543644,32.13,135.6,135.44,20.17]
[1718890543936,32.13,135.6,135.47,7.3813]
[1718890544129,54.34,135.6,135.45,7.3824]
[1718890544328,54.34,135.6,135.46,7.382]
[1718890544533,7.70765039,135.62,135.52,7.3784]
[1718890544719,2.09616037,135.63,135.52,7.3784]
[1718890545119,2.09616037,135.63,135.52,7.3786]
[1718890545336,2.09616037,135.63,135.53,7.378]
[1718890545812,2.09616037,135.63,135.51,18.4486]
[1718890546015,2.09616037,135.63,135.52,0.51]
[1718890546231,2.09616037,135.63,135.55,7.3772]
[1718890546433,2.09616037,135.63,135.54,7.3777]
[1718890546635,14.39852747,135.71,135.49,0.17]
[1718890546636,32.13,135.65,135.49,0.17]
[1718890546838,32.13,135.65,135.53,7.3784]
[1718890547022,32.13,135.65,135.49,61.3402]
[1718890547225,32.13,135.65,135.52,0.17]
[1718890547445,32.13,135.65,135.56,7.3767]
[1718890547737,32.13,135.65,135.56,7.3763]
[1718890547943,7.70760449,135.69,135.53,18.4455]
[1718890547944,7.70760449,135.69,135.58,7.3755]
[1718890548249,20.0,135.68,135.6,7.3746]
[1718890548453,20.0,135.68,135.58,7.3753]
[1718890548855,20.0,135.72,135.58,7.3753]
[1718890549227,22.21,135.71,135.58,7.3753]
[1718890549428,42.21,135.7,135.55,18.4488]
[1718890549729,32.13,135.69,135.55,18.4488]
[1718890549927,20.34,135.68,135.55,18.4488]
[1718890550151,20.34,135.68,135.58,7.3754]
[1718890550359,20.34,135.68,135.59,7.3748]
[1718890550848,20.34,135.68,135.56,18.4416]
[1718890550849,20.0,135.68,135.58,18.4388]
[1718890551052,20.0,135.72,135.6,7.3742]
[1718890551353,20.0,135.72,135.59,6.3984]
[1718890551526,20.0,135.72,135.6,38.4357]
[1718890551715,32.13,135.76,135.6,38.4357]
[1718890551919,32.13,135.76,135.6,20.0]
[1718890552144,32.13,135.72,135.59,7.3749]
[1718890552653,32.13,135.72,135.58,7.3755]
[1718890552819,32.13,135.72,135.55,18.4488]
[1718890553157,0.17,135.71,135.57,7.376]
[1718890553465,0.17,135.71,135.5,36.8978]
[1718890553466,0.17,135.67,135.52,18.4465]
[1718890553627,0.17,135.67,135.5,36.8978]
[1718890553628,20.68,135.67,135.5,36.8978]
[1718890553829,20.68,135.67,135.58,7.3753]
[1718890554138,20.68,135.67,135.55,18.443]
[1718890554331,20.68,135.67,135.59,7.3751]
[1718890554534,20.68,135.67,135.58,7.3752]
[1718890554752,20.0,135.67,135.57,18.4405]
[1718890554959,20.0,135.72,135.6,7.3741]
[1718890555258,20.0,135.72,135.57,18.4405]
[1718890555566,20.0,135.72,135.6,7.3743]
[1718890555757,20.0,135.72,135.58,7.3753]
[1718890555958,20.0,135.72,135.59,7.3747]
[1718890556141,20.0,135.72,135.59,7.3749]
[1718890556344,20.0,135.72,135.6,7.3745]
[1718890556547,0.51,135.71,135.58,7.3755]
[1718890556855,0.34,135.7,135.57,7.3761]
[1718890557164,0.17,135.67,135.59,7.3751]
[1718890557371,20.0,135.67,135.61,7.3737]
[1718890557750,20.0,135.67,135.61,7.374]
[1718890557956,0.17,135.68,135.61,7.374]
[1718890558260,0.34,135.68,135.61,7.374]
[1718890558643,0.17,135.68,135.6,7.3744]
[1718890558837,0.34,135.68,135.59,7.375]
[1718890559242,0.34,135.68,135.55,18.4433]
[1718890559458,0.34,135.67,135.56,20.0]
[1718890559841,0.34,135.67,135.56,18.4407]
[1718890560147,0.34,135.67,135.59,7.3748]
[1718890560347,0.17,135.66,135.54,38.4446]
[1718890560561,0.34,135.66,135.57,7.3759]
[1718890560767,0.34,135.65,135.56,7.3766]
[1718890560937,0.17,135.64,135.53,29.562989]
[1718890561245,0.34,135.67,135.58,7.3753]
[1718890561442,0.34,135.66,135.54,18.4444]
[1718890561646,0.17,135.64,135.57,7.3761]
[1718890561860,0.34,135.64,135.54,18.4444]
[1718890562062,0.34,135.63,135.55,7.3768]
[1718890562275,0.34,135.63,135.53,29.562989]
[1718890562276,0.17,135.63,135.53,29.562989]
[1718890562451,0.34,135.64,135.57,7.3759]
[1718890562870,0.34,135.64,135.56,7.3765]
[1718890563062,0.34,135.63,135.53,36.940889]
[1718890563279,0.34,135.62,135.5,7.3795]
[1718890563502,0.34,135.62,135.44,22.9524]
[1718890563663,0.17,135.6,135.52,2.957218]
[1718890563982,0.34,135.6,135.52,2.957218]
[1718890564160,0.17,135.6,135.55,7.3773]
[1718890564482,0.34,135.61,135.53,7.3781]
[1718890564680,0.34,135.61,135.54,7.3777]
[1718890565052,20.0,135.63,135.53,18.4451]
[1718890565250,20.0,135.64,135.56,7.3762]
[1718890565480,20.0,135.65,135.54,18.4434]
[1718890565671,20.0,135.65,135.58,7.3754]
[1718890565856,7.70450841,135.69,135.62,7.3733]
[1718890566188,32.13,135.73,135.53,22.2252]
[1718890566189,38.00473174,135.73,135.53,22.2252]
[1718890566351,22.21,135.68,135.5,18.4527]
[1718890566551,54.34,135.62,135.5,18.4527]
[1718890566773,32.13,135.66,135.41,6.0136]
[1718890566774,54.34,135.59,135.45,8.7854312]
[1718890567078,54.34,135.55,135.38,18.4653]
[1718890567380,54.34,135.55,135.35,15.1312]
[1718890567381,0.17,135.52,135.35,15.1312]
[1718890567596,0.17,135.5,135.39,7.386]
[1718890567881,20.68,135.5,135.41,7.3845]
[1718890568063,42.89,135.5,135.37,7.3868]
[1718890568255,42.89,135.5,135.37,7.3866]
[1718890568455,42.89,135.5,135.38,7.3866]
[1718890568683,42.89,135.5,135.35,33.6008]
[1718890568886,42.89,135.5,135.37,7.387]
[1718890569183,42.89,135.5,135.38,7.3864]
[1718890569389,42.89,135.5,135.32,29.601876]
[1718890569687,0.17,135.47,135.38,7.3865]
[1718890569906,0.17,135.47,135.31,21.5593]
[1718890570101,20.0,135.48,135.31,21.5593]
[1718890570397,20.0,135.51,135.38,36.9319]
[1718890570574,20.0,135.51,135.36,22.21]
[1718890570775,20.0,135.51,135.42,7.3842]
[1718890571083,20.0,135.51,135.36,22.21]
[1718890571084,32.13,135.59,135.44,0.17]
[1718890571402,20.0,135.58,135.49,7.3802]
[1718890571792,20.0,135.58,135.47,7.3811]
[1718890571974,20.0,135.58,135.44,0.68]
[1718890572280,20.0,135.58,135.48,7.381]
[1718890572479,20.0,135.58,135.49,7.3806]
[1718890572692,20.0,135.58,135.47,0.17]
[1718890572902,20.0,135.65,135.48,22.21]
[1718890573107,32.13,135.66,135.49,20.68]
[1718890573279,32.13,135.66,135.5,18.4496]
[1718890573606,32.13,135.66,135.52,7.3784]
[1718890573806,32.13,135.66,135.5,18.4496]
[1718890573807,22.21,135.65,135.5,18.4496]
[1718890574096,32.13,135.66,135.57,7.3761]
[1718890574297,20.0,135.65,135.55,0.17]
[1718890574505,34.22616037,135.73,135.54,18.4445]
[1718890574506,20.0,135.7,135.54,18.4445]
[1718890574711,20.0,135.72,135.58,7.3755]
[1718890574880,32.13,135.69,135.54,18.4445]
[1718890575073,22.21,135.68,135.56,7.3763]
[1718890575274,22.21,135.68,135.52,0.17]
[1718890575497,22.21,135.64,135.49,20.0]
[1718890575818,32.13,135.65,135.52,18.4472]
[1718890575976,41.92980358,135.73,135.54,18.4436]
[1718890575977,74.05980358,135.73,135.54,18.4436]
[1718890576182,41.92980358,135.73,135.6,7.3745]
[1718890576383,41.92980358,135.73,135.52,6.0975]
[1718890576676,32.13,135.69,135.53,75.3373]
[1718890576877,54.34,135.69,135.55,18.4429]
[1718890577102,22.21,135.69,135.58,7.3753]
[1718890577304,22.21,135.69,135.55,18.4429]
[1718890577305,22.21,135.69,135.57,7.3761]
[1718890577511,0.34,135.68,135.57,7.3761]
[1718890577803,0.34,135.68,135.58,7.3754]
[1718890578013,0.34,135.68,135.53,56.892]
[1718890578014,20.34,135.68,135.57,18.4404]
[1718890578190,20.0,135.71,135.57,18.4404]
[1718890578391,20.0,135.71,135.53,56.892]
[1718890578392,22.21,135.7,135.53,56.892]
[1718890578704,42.21,135.69,135.57,7.376]
[1718890578880,32.13,135.66,135.53,20.0]
[1718890579083,20.0,135.71,135.59,7.3748]
[1718890579282,20.0,135.71,135.56,18.4418]
[1718890579508,32.13,135.69,135.58,7.3756]
[1718890579808,20.0,135.68,135.61,7.374]
[1718890579981,20.0,135.68,135.62,7.3734]
[1718890580184,39.83364321,135.73,135.63,7.3728]
[1718890580390,20.0,135.72,135.64,7.372]
[1718890580806,20.0,135.72,135.63,7.3729]
[1718890581404,20.0,135.72,135.6,18.4361]
[1718890581611,20.0,135.72,135.62,7.3734]
[1718890581787,20.0,135.72,135.6,7.3741]
[1718890581987,0.17,135.71,135.52,0.17]
[1718890582204,0.17,135.71,135.53,36.8904]
[1718890582507,0.17,135.71,135.54,20.68]
[1718890582713,0.34,135.71,135.62,7.373]
[1718890583010,0.34,135.7,135.54,20.0]
[1718890583202,0.17,135.69,135.61,7.3739]
[1718890583389,0.17,135.69,135.54,20.0]
[1718890583908,0.17,135.69,135.56,18.4407]
[1718890584113,0.17,135.65,135.48,7.3807]
[1718890584293,0.17,135.6,135.5,7.38]
[1718890584489,42.89,135.6,135.44,36.9142]
[1718890584716,42.89,135.6,135.45,18.4557]
[1718890584928,22.38,135.56,135.43,7.3837]
[1718890585105,0.17,135.54,135.41,29.578637]
[1718890585291,0.17,135.55,135.45,18.4566]
[1718890585603,0.17,135.54,135.45,7.3822]
[1718890585812,0.34,135.54,135.45,7.3822]
[1718890586003,0.17,135.52,135.45,7.3822]
[1718890586187,20.0,135.56,135.49,7.3805]
[1718890586520,0.17,135.54,135.43,18.4592]
[1718890586816,0.17,135.54,135.4,22.21]
[1718890587195,0.17,135.55,135.49,7.3801]
[1718890587519,0.34,135.55,135.48,7.381]
[1718890588103,0.17,135.55,135.46,18.4551]
[1718890588407,0.34,135.55,135.47,7.3812]
[1718890588596,0.17,135.53,135.43,18.4587]
[1718890588792,0.34,135.55,135.48,7.3808]
[1718890588992,0.34,135.55,135.41,22.21]
[1718890589186,0.34,135.55,135.43,0.17]
[1718890589392,0.17,135.53,135.43,0.17]
[1718890589592,0.34,135.53,135.43,0.34]
[1718890590012,0.34,135.53,135.46,7.3821]
[1718890590313,20.0,135.56,135.43,0.34]
[1718890590513,0.17,135.55,135.45,0.17]
[1718890590718,0.17,135.56,135.45,0.17]
[1718890590922,0.34,135.57,135.45,0.17]
[1718890591103,0.17,135.55,135.48,7.3811]
[1718890591290,0.17,135.55,135.45,18.4568]
[1718890591291,0.34,135.55,135.45,18.4568]
[1718890591499,7.3791,135.52,135.45,7.3823]
[1718890592023,0.17,135.51,135.39,18.4647]
[1718890592226,7.3813,135.48,135.42,7.3844]
[1718890592396,7.3807,135.49,135.43,7.3838]
[1718890592600,7.3813,135.48,135.42,7.3842]
[1718890592794,0.17,135.49,135.41,7.3849]
[1718890593018,0.17,135.5,135.36,59.1481]
[1718890593313,20.0,135.52,135.47,7.3816]
[1718890593529,27.3795,135.52,135.46,7.3821]
[1718890593910,2.958073,135.62,135.45,18.4568]
[1718890594117,7.3779,135.54,135.48,7.3809]
[1718890594423,7.3789,135.52,135.46,7.3818]
[1718890594615,22.21,135.57,135.43,18.4585]
[1718890594813,22.21,135.55,135.3,9.979991]
[1718890595003,20.0,135.56,135.41,7.3846]
[1718890595004,7.382,135.47,135.41,7.3846]
[1718890595204,7.3823,135.46,135.36,55.4064]
[1718890595418,0.17,135.52,135.36,36.9374]
[1718890595599,20.68,135.52,135.37,22.21]
[1718890595800,20.0,135.52,135.44,7.3832]
[1718890596104,7.3802,135.5,135.44,7.3832]
[1718890596627,20.0,135.52,135.47,7.3816]
[1718890596799,7.3791,135.52,135.39,59.1382]
[1718890597008,7.3791,135.52,135.47,7.3816]
[1718890597310,22.21,135.57,135.43,18.4585]
[1718890597503,22.21,135.55,135.41,0.17]
[1718890597699,7.3809,135.49,135.43,7.3837]
[1718890597907,7.3799,135.51,135.45,7.3825]
[1718890598119,7.3799,135.51,135.46,7.382]
[1718890598323,7.3799,135.51,135.45,7.3825]
[1718890599135,7.3809,135.49,135.43,7.3836]
[1718890599427,7.3823,135.46,135.4,7.385]
[1718890599601,7.3843,135.43,135.37,7.3869]
[1718890600001,22.21,135.5,135.36,18.4681]
[1718890600313,0.17,135.48,135.35,2.957872]
[1718890600629,27.5506,135.49,135.43,7.3835]
[1718890601024,20.0,135.49,135.42,18.4606]
[1718890601328,7.3779,135.54,135.42,36.9206]
[1718890601535,7.3781,135.54,135.48,7.381]
[1718890601713,32.13,135.59,135.46,18.4556]
[1718890602029,32.13,135.59,135.48,7.3809]
[1718890602214,32.13,135.59,135.46,18.4556]
[1718890602215,7.3779,135.54,135.49,7.3805]
[1718890602609,32.13,135.59,135.48,18.4528]
[1718890602806,32.13,135.66,135.5,7.3798]
[1718890603013,7.3778,135.55,135.46,18.4554]
[1718890603320,22.21,135.62,135.43,15.6146]
[1718890603529,7.3796,135.51,135.45,7.3824]
[1718890603911,7.3792,135.52,135.46,7.3821]
[1718890604232,7.3795,135.51,135.46,7.3821]
[1718890604533,7.3792,135.52,135.46,7.3821]
[1718890605206,7.3795,135.51,135.46,7.3821]
[1718890605403,22.21,135.55,135.44,7.3833]
[1718890605636,0.51,135.54,135.46,7.3822]
[1718890605814,7.3792,135.52,135.46,7.3822]
[1718890606020,7.3792,135.52,135.47,7.3816]
[1718890606227,0.17,135.53,135.46,18.4544]
[1718890606532,32.13,135.6,135.48,7.3809]
[1718890606533,7.3781,135.54,135.48,7.3809]
[1718890606736,7.3784,135.53,135.48,7.3809]
[1718890607235,7.3784,135.53,135.47,7.3815]
[1718890607814,7.3781,135.54,135.45,0.17]
[1718890608034,7.3781,135.54,135.48,7.3807]
[1718890608226,7.3781,135.54,135.49,7.3804]
[1718890608739,7.3776,135.55,135.49,7.3804]
[1718890609318,7.3776,135.55,135.5,7.38]
[1718890609542,7.3776,135.55,135.49,7.3804]
[1718890609842,7.3776,135.55,135.5,7.38]
[1718890610046,0.51,135.58,135.51,7.3793]
[1718890610339,20.0,135.59,135.45,59.2925]
[1718890610541,20.0,135.63,135.55,7.3772]
[1718890610752,20.0,135.65,135.55,7.3772]
[1718890610921,7.3737,135.62,135.53,18.4448]
[1718890611118,7.3738,135.62,135.57,7.3758]
[1718890611419,32.13,135.66,135.53,18.4448]
[1718890611420,7.3744,135.61,135.53,18.4448]
[1718890611734,32.13,135.66,135.51,25.072]
[1718890611922,7.3755,135.59,135.54,7.3778]
[1718890612117,7.3745,135.61,135.55,7.3772]
[1718890612317,54.34,135.66,135.56,7.3765]
[1718890612318,7.3738,135.62,135.56,7.3765]
[1718890612523,54.34,135.66,135.52,7.3788]
[1718890612720,54.34,135.66,135.53,7.3779]
[1718890612721,7.3752,135.59,135.53,7.3779]
[1718890612925,7.3752,135.59,135.51,18.4485]
[1718890613150,7.3737,135.62,135.5,0.17]
[1718890613321,54.34,135.66,135.54,7.3777]
[1718890613527,7.3755,135.59,135.53,7.3782]
[1718890613721,7.3755,135.59,135.53,7.3781]
[1718890613948,0.34,135.65,135.53,18.4459]
[1718890614122,20.34,135.65,135.5,20.0]
[1718890614649,7.3761,135.58,135.52,7.3786]
[1718890614946,7.3753,135.59,135.53,7.3783]
[1718890615133,0.34,135.6,135.51,7.3792]
[1718890615341,7.3767,135.57,135.51,7.3792]
[1718890616141,7.5458,135.58,135.52,7.3789]
[1718890617029,7.3757,135.58,135.53,7.3783]
[1718890617541,7.3764,135.57,135.47,21.6273]
[1718890617753,0.17,135.59,135.53,7.3781]
[1718890618051,7.3766,135.57,135.52,7.3789]
[1718890618454,7.3769,135.56,135.47,21.6273]
[1718890618653,7.3764,135.57,135.51,7.3792]
[1718890619154,7.3759,135.58,135.49,18.4513]
[1718890619335,7.3759,135.58,135.52,7.3787]
[1718890620033,7.3759,135.58,135.53,7.3783]
[1718890620246,7.3759,135.58,135.5,0.17]
[1718890620247,7.3762,135.58,135.52,7.3788]
[1718890620447,0.17,135.57,135.49,7.3805]
[1718890620747,7.3777,135.55,135.49,7.3805]
[1718890620946,0.51,135.57,135.46,7.3821]
[1718890620947,7.3796,135.51,135.46,7.3821]
[1718890621251,0.34,135.54,135.46,7.3821]
[1718890621252,0.17,135.54,135.47,7.3812]
[1718890621435,7.3786,135.53,135.48,7.3811]
[1718890621631,0.34,135.54,135.43,18.4587]
[1718890621951,0.34,135.54,135.45,7.3824]
[1718890621952,7.3796,135.51,135.45,7.3824]
[1718890622168,7.3792,135.52,135.47,7.3816]
[1718890622459,0.17,135.54,135.43,7.3796]
[1718890622636,7.3787,135.53,135.47,7.3813]
[1718890623029,7.548,135.54,135.45,18.4557]
[1718890623235,0.17,135.54,135.49,7.3802]
[1718890623757,7.3765,135.57,135.51,7.3793]
[1718890623930,7.3768,135.56,135.5,7.3798]
[1718890624130,7.3765,135.57,135.48,18.4516]
[1718890624344,7.3765,135.57,135.51,7.3793]